[Event "Titled Tuesday Blitz August 23 Late 2022"]
[White "Zhigalko, Sergei"]
[Black "Can, Melih Kaan"]
[WhiteFideId "13502956"]
[BlackFideId "6317383"]
[WhiteElo "2662"]
[BlackElo "2049"]
[Result "1-0"]
[Round "01"]
[TimeControl "180+1"]
[Date "2022.08.23"]
[WhiteClock "0:01:16"]
[BlackClock "0:00:33"]

1. e4 {[%clk 0:03:00]}  e5 {[%clk 0:02:57]} 2. Nf3 {[%clk 0:03:00]}  Nc6 {[%clk 0:02:57]} 3. Bc4 {[%clk 0:03:00]}  Nf6 {[%clk 0:02:52]} 4. d3 {[%clk 0:03:00]}  Be7 {[%clk 0:02:51]} 5. O-O {[%clk 0:03:00]}  O-O {[%clk 0:02:51]} 6. Nbd2 {[%clk 0:03:01]}  d6 {[%clk 0:02:51]} 7. c3 {[%clk 0:03:01]}  Kh8 {[%clk 0:02:49]} 8. Re1 {[%clk 0:03:00]}  Ng4 {[%clk 0:02:49]} 9. h3 {[%clk 0:02:52]}  Nh6 {[%clk 0:02:47]} 10. d4 {[%clk 0:02:52]}  f5 {[%clk 0:02:45]} 11. dxe5 {[%clk 0:02:51]}  fxe4 {[%clk 0:02:44]} 12. Nxe4 {[%clk 0:02:49]}  Rxf3 {[%clk 0:02:43]} 13. exd6 {[%clk 0:02:33]}  Ne5 {[%clk 0:02:17]} 14. dxe7 {[%clk 0:02:28]}  Qxe7 {[%clk 0:02:12]} 15. gxf3 {[%clk 0:02:02]}  Bxh3 {[%clk 0:01:49]} 16. Ng5 {[%clk 0:01:58]}  Qf6 {[%clk 0:00:49]} 17. Rxe5 {[%clk 0:01:52]}  Qxe5 {[%clk 0:00:46]} 18. Nxh3 {[%clk 0:01:52]}  Qh5 {[%clk 0:00:43]} 19. Bxh6 {[%clk 0:01:43]}  Qxh6 {[%clk 0:00:43]} 20. Kh2 {[%clk 0:01:35]}  Rf8 {[%clk 0:00:40]} 21. Qd4 {[%clk 0:01:30]}  c5 {[%clk 0:00:33]} 22. Qxc5 {[%clk 0:01:20]}  Qf6 {[%clk 0:00:33]} 23. f4 {[%clk 0:01:16]} 1-0


[Site "https://www.chess.com"]

[Event "Titled Tuesday Blitz August 23 Late 2022"]
[White "Abdrlauf, Elham"]
[Black "Ezat, Mohamed"]
[WhiteFideId "1533533"]
[BlackFideId "10600906"]
[WhiteElo "2430"]
[BlackElo "2386"]
[Result "1-0"]
[Round "02"]
[TimeControl "180+1"]
[Date "2022.08.23"]
[WhiteClock "0:00:28"]
[BlackClock "0:00:09"]

1. e4 {[%clk 0:03:00]}  c6 {[%clk 0:02:58]} 2. d4 {[%clk 0:03:00]}  d5 {[%clk 0:02:58]} 3. Nc3 {[%clk 0:03:00]}  b5 {[%clk 0:02:56]} 4. a3 {[%clk 0:02:56]}  a6 {[%clk 0:02:56]} 5. Nf3 {[%clk 0:02:55]}  Bg4 {[%clk 0:02:55]} 6. Be2 {[%clk 0:02:52]}  e6 {[%clk 0:02:53]} 7. O-O {[%clk 0:02:52]}  Nd7 {[%clk 0:02:52]} 8. h3 {[%clk 0:02:49]}  Bh5 {[%clk 0:02:50]} 9. Re1 {[%clk 0:02:49]}  Bd6 {[%clk 0:02:44]} 10. exd5 {[%clk 0:02:26]}  cxd5 {[%clk 0:02:43]} 11. Ne5 {[%clk 0:02:26]}  Bxe2 {[%clk 0:02:41]} 12. Qxe2 {[%clk 0:02:27]}  Ngf6 {[%clk 0:02:37]} 13. Nxf7 {[%clk 0:02:25]}  Kxf7 {[%clk 0:02:32]} 14. Qxe6+ {[%clk 0:02:24]}  Kg6 {[%clk 0:02:32]} 15. Qxd6 {[%clk 0:02:25]}  Re8 {[%clk 0:02:31]} 16. Bf4 {[%clk 0:02:16]}  Qb6 {[%clk 0:02:27]} 17. Qxb6 {[%clk 0:02:09]}  Nxb6 {[%clk 0:02:27]} 18. Be5 {[%clk 0:02:10]}  Nfd7 {[%clk 0:02:23]} 19. Bc7 {[%clk 0:01:33]}  Rac8 {[%clk 0:02:20]} 20. Bxb6 {[%clk 0:01:33]}  Nxb6 {[%clk 0:02:20]} 21. Kf1 {[%clk 0:01:33]}  Kf7 {[%clk 0:02:12]} 22. Rxe8 {[%clk 0:01:31]}  Kxe8 {[%clk 0:02:04]} 23. Ke2 {[%clk 0:01:20]}  Kd7 {[%clk 0:02:04]} 24. Kd3 {[%clk 0:01:20]}  Kd6 {[%clk 0:02:03]} 25. b3 {[%clk 0:01:17]}  Rf8 {[%clk 0:01:59]} 26. f3 {[%clk 0:01:17]}  Re8 {[%clk 0:01:54]} 27. Kd2 {[%clk 0:01:07]}  Rf8 {[%clk 0:01:47]} 28. Re1 {[%clk 0:01:07]}  Rf4 {[%clk 0:01:46]} 29. Ne2 {[%clk 0:01:02]}  Rf7 {[%clk 0:01:44]} 30. Nc1 {[%clk 0:01:02]}  Rf4 {[%clk 0:01:42]} 31. Nd3 {[%clk 0:01:02]}  Rf6 {[%clk 0:01:38]} 32. Nc5 {[%clk 0:00:59]}  Rg6 {[%clk 0:01:36]} 33. g4 {[%clk 0:00:57]}  Rh6 {[%clk 0:01:34]} 34. f4 {[%clk 0:00:43]}  a5 {[%clk 0:01:27]} 35. Re3 {[%clk 0:00:42]}  a4 {[%clk 0:01:23]} 36. Kc3 {[%clk 0:00:42]}  axb3 {[%clk 0:01:23]} 37. cxb3 {[%clk 0:00:43]}  Rf6 {[%clk 0:01:17]} 38. f5 {[%clk 0:00:43]}  g6 {[%clk 0:01:12]} 39. Kb4 {[%clk 0:00:35]}  gxf5 {[%clk 0:01:10]} 40. gxf5 {[%clk 0:00:36]}  Na8 {[%clk 0:01:05]} 41. Re6+ {[%clk 0:00:33]}  Rxe6 {[%clk 0:01:05]} 42. fxe6 {[%clk 0:00:33]}  Nc7 {[%clk 0:01:04]} 43. Ka5 {[%clk 0:00:34]}  Kc6 {[%clk 0:01:04]} 44. e7 {[%clk 0:00:34]}  Ne8 {[%clk 0:01:03]} 45. Nd3 {[%clk 0:00:33]}  Nc7 {[%clk 0:00:55]} 46. Ne5+ {[%clk 0:00:33]}  Kd6 {[%clk 0:00:55]} 47. Kb6 {[%clk 0:00:30]}  Ne8 {[%clk 0:00:55]} 48. Kxb5 {[%clk 0:00:29]}  Kxe7 {[%clk 0:00:55]} 49. Kc6 {[%clk 0:00:30]}  Ke6 {[%clk 0:00:55]} 50. b4 {[%clk 0:00:30]}  Nd6 {[%clk 0:00:54]} 51. b5 {[%clk 0:00:31]}  Nc4 {[%clk 0:00:54]} 52. b6 {[%clk 0:00:25]}  Na5+ {[%clk 0:00:48]} 53. Kc7 {[%clk 0:00:25]}  Kf5 {[%clk 0:00:48]} 54. b7 {[%clk 0:00:25]}  Nxb7 {[%clk 0:00:48]} 55. Kxb7 {[%clk 0:00:25]}  Ke4 {[%clk 0:00:49]} 56. Nc6 {[%clk 0:00:26]}  Kd3 {[%clk 0:00:49]} 57. a4 {[%clk 0:00:27]}  Kc4 {[%clk 0:00:50]} 58. a5 {[%clk 0:00:28]}  Kb5 {[%clk 0:00:50]} 59. a6 {[%clk 0:00:29]}  Kc4 {[%clk 0:00:50]} 60. a7 {[%clk 0:00:30]}  Kd3 {[%clk 0:00:51]} 61. a8=Q {[%clk 0:00:30]}  Ke3 {[%clk 0:00:09]} 62. Qh8 {[%clk 0:00:27]}  h5 {[%clk 0:00:08]} 63. Qxh5 {[%clk 0:00:27]}  Kf4 {[%clk 0:00:09]} 64. Qe5+ {[%clk 0:00:26]}  Kf3 {[%clk 0:00:08]} 65. Qxd5+ {[%clk 0:00:27]}  Kg3 {[%clk 0:00:08]} 66. Qg5+ {[%clk 0:00:27]}  Kxh3 {[%clk 0:00:09]} 67. Ne5 {[%clk 0:00:27]}  Kh2 {[%clk 0:00:10]} 68. Nf3+ {[%clk 0:00:27]}  Kh3 {[%clk 0:00:10]} 69. Ne1 {[%clk 0:00:27]}  Kh2 {[%clk 0:00:09]} 70. Qg2# {[%clk 0:00:28]} 1-0


[Site "https://www.chess.com"]

[Event "Titled Tuesday Blitz August 23 Late 2022"]
[White "Aldokhin, Ivan"]
[Black "Caruana, Fabiano"]
[WhiteFideId "24115720"]
[BlackFideId "2020009"]
[WhiteElo "2246"]
[BlackElo "2847"]
[Result "0-1"]
[Round "02"]
[TimeControl "180+1"]
[Date "2022.08.23"]
[WhiteClock "0:00:01"]
[BlackClock "0:00:42"]

1. e4 {[%clk 0:02:59]}  e5 {[%clk 0:02:59]} 2. Nf3 {[%clk 0:02:59]}  Nc6 {[%clk 0:03:00]} 3. Bb5 {[%clk 0:02:59]}  Nf6 {[%clk 0:03:00]} 4. O-O {[%clk 0:02:59]}  Nxe4 {[%clk 0:03:01]} 5. Re1 {[%clk 0:02:59]}  Nd6 {[%clk 0:03:01]} 6. Bxc6 {[%clk 0:03:00]}  dxc6 {[%clk 0:03:00]} 7. Nxe5 {[%clk 0:03:01]}  Be7 {[%clk 0:03:00]} 8. b3 {[%clk 0:03:01]}  O-O {[%clk 0:03:00]} 9. Bb2 {[%clk 0:03:02]}  f6 {[%clk 0:02:58]} 10. Nc4 {[%clk 0:02:50]}  Nxc4 {[%clk 0:02:56]} 11. bxc4 {[%clk 0:02:50]}  Re8 {[%clk 0:02:51]} 12. Nc3 {[%clk 0:02:42]}  Bf5 {[%clk 0:02:49]} 13. d3 {[%clk 0:02:38]}  Qd7 {[%clk 0:02:49]} 14. Qf3 {[%clk 0:02:18]}  Bg4 {[%clk 0:02:46]} 15. Qg3 {[%clk 0:02:09]}  Bd6 {[%clk 0:02:45]} 16. Qh4 {[%clk 0:02:09]}  Be5 {[%clk 0:02:42]} 17. h3 {[%clk 0:02:00]}  Bf5 {[%clk 0:02:39]} 18. Na4 {[%clk 0:01:40]}  g5 {[%clk 0:02:34]} 19. Qh6 {[%clk 0:01:37]}  Bxb2 {[%clk 0:02:34]} 20. Nxb2 {[%clk 0:01:36]}  Qd4 {[%clk 0:02:31]} 21. Na4 {[%clk 0:01:22]}  b5 {[%clk 0:02:21]} 22. c3 {[%clk 0:01:14]}  Qxd3 {[%clk 0:01:49]} 23. Qxf6 {[%clk 0:01:01]}  bxa4 {[%clk 0:01:45]} 24. Qxg5+ {[%clk 0:00:59]}  Bg6 {[%clk 0:01:44]} 25. h4 {[%clk 0:00:54]}  Qf5 {[%clk 0:01:41]} 26. Qg3 {[%clk 0:00:52]}  Rad8 {[%clk 0:01:21]} 27. Qxc7 {[%clk 0:00:43]}  Rf8 {[%clk 0:01:17]} 28. Qg3 {[%clk 0:00:29]}  Rd3 {[%clk 0:01:16]} 29. Re3 {[%clk 0:00:28]}  Rxe3 {[%clk 0:01:14]} 30. Qxe3 {[%clk 0:00:26]}  Qf4 {[%clk 0:01:12]} 31. Qxa7 {[%clk 0:00:25]}  Qxc4 {[%clk 0:01:09]} 32. Re1 {[%clk 0:00:11]}  Qxc3 {[%clk 0:01:09]} 33. Re7 {[%clk 0:00:07]}  Qa1+ {[%clk 0:01:09]} 34. Kh2 {[%clk 0:00:07]}  Qf6 {[%clk 0:01:10]} 35. h5 {[%clk 0:00:03]}  Bf7 {[%clk 0:00:46]} 36. f3 {[%clk 0:00:02]}  Rd8 {[%clk 0:00:43]} 37. Qe3 {[%clk 0:00:01]}  Qh4+ {[%clk 0:00:42]} 38. Kg1 {[%clk 0:00:01]}  Rd1+ {[%clk 0:00:42]} 0-1


[Site "https://www.chess.com"]

[Event "Titled Tuesday Blitz August 23 Late 2022"]
[White "Atanasov, Anthony"]
[Black "Salem, A.R. Saleh"]
[WhiteFideId "2623897"]
[BlackFideId "9301348"]
[WhiteElo "1928"]
[BlackElo "2674"]
[Result "0-1"]
[Round "02"]
[TimeControl "180+1"]
[Date "2022.08.23"]
[WhiteClock "0:00:01"]
[BlackClock "0:00:40"]

1. Nf3 {[%clk 0:03:00]}  c5 {[%clk 0:02:57]} 2. e4 {[%clk 0:03:01]}  d6 {[%clk 0:02:53]} 3. d4 {[%clk 0:03:01]}  cxd4 {[%clk 0:02:54]} 4. Nxd4 {[%clk 0:03:02]}  Nf6 {[%clk 0:02:55]} 5. Nc3 {[%clk 0:03:02]}  a6 {[%clk 0:02:55]} 6. Nb3 {[%clk 0:03:03]}  e6 {[%clk 0:02:54]} 7. g4 {[%clk 0:03:03]}  b5 {[%clk 0:02:50]} 8. Bg2 {[%clk 0:03:01]}  Bb7 {[%clk 0:02:48]} 9. g5 {[%clk 0:03:02]}  Nfd7 {[%clk 0:02:46]} 10. h4 {[%clk 0:03:00]}  Nc6 {[%clk 0:02:43]} 11. Be3 {[%clk 0:02:58]}  Nce5 {[%clk 0:02:42]} 12. Nd2 {[%clk 0:02:40]}  Nb6 {[%clk 0:02:37]} 13. Bd4 {[%clk 0:01:55]}  b4 {[%clk 0:02:26]} 14. Ne2 {[%clk 0:01:45]}  Nc6 {[%clk 0:02:21]} 15. Be3 {[%clk 0:01:33]}  Be7 {[%clk 0:02:19]} 16. f4 {[%clk 0:01:21]}  Rc8 {[%clk 0:02:13]} 17. c3 {[%clk 0:01:01]}  a5 {[%clk 0:02:11]} 18. O-O {[%clk 0:00:56]}  O-O {[%clk 0:02:09]} 19. c4 {[%clk 0:00:41]}  d5 {[%clk 0:01:58]} 20. c5 {[%clk 0:00:11]}  Nc4 {[%clk 0:01:51]} 21. Nxc4 {[%clk 0:00:09]}  dxc4 {[%clk 0:01:52]} 22. Qc2 {[%clk 0:00:10]}  Qd3 {[%clk 0:01:48]} 23. Qxd3 {[%clk 0:00:06]}  cxd3 {[%clk 0:01:49]} 24. Nc1 {[%clk 0:00:05]}  Rfd8 {[%clk 0:01:49]} 25. Rd1 {[%clk 0:00:05]}  Ba6 {[%clk 0:01:50]} 26. Bf1 {[%clk 0:00:04]}  e5 {[%clk 0:01:45]} 27. f5 {[%clk 0:00:03]}  Nd4 {[%clk 0:01:44]} 28. Bxd3 {[%clk 0:00:03]}  Bb7 {[%clk 0:01:44]} 29. Bxd4 {[%clk 0:00:03]}  Rxd4 {[%clk 0:01:41]} 30. Nb3 {[%clk 0:00:04]}  Rdd8 {[%clk 0:01:33]} 31. Nxa5 {[%clk 0:00:04]}  Bxc5+ {[%clk 0:01:32]} 32. Kf1 {[%clk 0:00:05]}  Ba8 {[%clk 0:01:33]} 33. Rac1 {[%clk 0:00:04]}  h6 {[%clk 0:01:29]} 34. Nc4 {[%clk 0:00:05]}  Bd4 {[%clk 0:01:28]} 35. Ke2 {[%clk 0:00:05]}  Bb7 {[%clk 0:01:25]} 36. gxh6 {[%clk 0:00:05]}  gxh6 {[%clk 0:01:25]} 37. a3 {[%clk 0:00:06]}  b3 {[%clk 0:01:24]} 38. f6 {[%clk 0:00:04]}  Kf8 {[%clk 0:01:24]} 39. Rf1 {[%clk 0:00:04]}  Ba6 {[%clk 0:01:23]} 40. Nxe5 {[%clk 0:00:02]}  Rxc1 {[%clk 0:01:19]} 41. Rxc1 {[%clk 0:00:03]}  Bxb2 {[%clk 0:01:20]} 42. Rb1 {[%clk 0:00:03]}  Bxd3+ {[%clk 0:01:16]} 43. Nxd3 {[%clk 0:00:03]}  Bxf6 {[%clk 0:01:17]} 44. Rxb3 {[%clk 0:00:03]}  Bxh4 {[%clk 0:01:18]} 45. a4 {[%clk 0:00:03]}  Rd4 {[%clk 0:01:18]} 46. Rb4 {[%clk 0:00:02]}  Rd8 {[%clk 0:01:11]} 47. e5 {[%clk 0:00:03]}  Be7 {[%clk 0:01:11]} 48. Rc4 {[%clk 0:00:03]}  Rd5 {[%clk 0:01:09]} 49. Ke3 {[%clk 0:00:03]}  h5 {[%clk 0:01:10]} 50. Ke4 {[%clk 0:00:04]}  Ra5 {[%clk 0:01:10]} 51. Nf4 {[%clk 0:00:04]}  h4 {[%clk 0:01:09]} 52. Nd5 {[%clk 0:00:05]}  Bg5 {[%clk 0:01:09]} 53. Nf6 {[%clk 0:00:04]}  Kg7 {[%clk 0:01:08]} 54. Kf3 {[%clk 0:00:01]}  Rxe5 {[%clk 0:01:07]} 55. Ng4 {[%clk 0:00:02]}  Rd5 {[%clk 0:01:04]} 56. Kg2 {[%clk 0:00:01]}  f5 {[%clk 0:01:03]} 57. Nf2 {[%clk 0:00:02]}  Kg6 {[%clk 0:01:01]} 58. Kf3 {[%clk 0:00:02]}  Re5 {[%clk 0:01:00]} 59. Rc6+ {[%clk 0:00:02]}  Kh5 {[%clk 0:01:00]} 60. Rc3 {[%clk 0:00:02]}  Bh6 {[%clk 0:00:55]} 61. Rb3 {[%clk 0:00:02]}  Re6 {[%clk 0:00:47]} 62. Rb5 {[%clk 0:00:03]}  Re3+ {[%clk 0:00:47]} 63. Kg2 {[%clk 0:00:03]}  Rg3+ {[%clk 0:00:47]} 64. Kf1 {[%clk 0:00:03]}  Kg6 {[%clk 0:00:46]} 65. Rb6+ {[%clk 0:00:03]}  Kg5 {[%clk 0:00:46]} 66. Rb5 {[%clk 0:00:03]}  Re3 {[%clk 0:00:46]} 67. Kg2 {[%clk 0:00:03]}  Bf8 {[%clk 0:00:44]} 68. a5 {[%clk 0:00:03]}  Rg3+ {[%clk 0:00:44]} 69. Kh1 {[%clk 0:00:03]}  Ra3 {[%clk 0:00:45]} 70. a6 {[%clk 0:00:03]}  Rxa6 {[%clk 0:00:43]} 71. Ne4+ {[%clk 0:00:03]}  Kg6 {[%clk 0:00:42]} 72. Nf2 {[%clk 0:00:03]}  Ra2 {[%clk 0:00:40]} 73. Nh3 {[%clk 0:00:03]}  Bd6 {[%clk 0:00:40]} 74. Ng1 {[%clk 0:00:01]}  Rh2# {[%clk 0:00:40]} 0-1


[Site "https://www.chess.com"]

[Event "Titled Tuesday Blitz August 23 Late 2022"]
[White "Bacrot, Etienne"]
[Black "Al-Tarboush, Ward"]
[WhiteFideId "605506"]
[BlackFideId "7601450"]
[WhiteElo "2673"]
[BlackElo "2234"]
[Result "1-0"]
[Round "02"]
[TimeControl "180+1"]
[Date "2022.08.23"]
[WhiteClock "0:00:12"]
[BlackClock "0:00:02"]

1. e4 {[%clk 0:03:00]}  e6 {[%clk 0:02:54]} 2. d4 {[%clk 0:03:00]}  d5 {[%clk 0:02:54]} 3. exd5 {[%clk 0:03:01]}  exd5 {[%clk 0:02:54]} 4. Nf3 {[%clk 0:03:01]}  Bg4 {[%clk 0:02:53]} 5. h3 {[%clk 0:02:53]}  Bh5 {[%clk 0:02:53]} 6. Qe2+ {[%clk 0:02:47]}  Qe7 {[%clk 0:02:52]} 7. Nc3 {[%clk 0:02:41]}  Bxf3 {[%clk 0:02:44]} 8. gxf3 {[%clk 0:02:37]}  Qxe2+ {[%clk 0:02:42]} 9. Bxe2 {[%clk 0:02:37]}  c6 {[%clk 0:02:41]} 10. Bf4 {[%clk 0:02:36]}  Nf6 {[%clk 0:02:37]} 11. O-O-O {[%clk 0:02:35]}  Bb4 {[%clk 0:02:35]} 12. Na4 {[%clk 0:02:30]}  Nbd7 {[%clk 0:02:30]} 13. Rhg1 {[%clk 0:02:18]}  Nh5 {[%clk 0:02:06]} 14. Bh2 {[%clk 0:02:06]}  O-O {[%clk 0:02:03]} 15. f4 {[%clk 0:01:58]}  Nhf6 {[%clk 0:01:59]} 16. f5 {[%clk 0:01:58]}  Ne4 {[%clk 0:01:54]} 17. f3 {[%clk 0:01:52]}  Nf2 {[%clk 0:01:46]} 18. Rdf1 {[%clk 0:01:52]}  Nxh3 {[%clk 0:01:46]} 19. Rg2 {[%clk 0:01:38]}  Rfe8 {[%clk 0:00:53]} 20. a3 {[%clk 0:01:18]}  Bf8 {[%clk 0:00:53]} 21. Kd2 {[%clk 0:01:18]}  Nf6 {[%clk 0:00:53]} 22. Nc3 {[%clk 0:00:58]}  b5 {[%clk 0:00:47]} 23. f4 {[%clk 0:00:43]}  b4 {[%clk 0:00:47]} 24. axb4 {[%clk 0:00:43]}  Bxb4 {[%clk 0:00:48]} 25. Rf3 {[%clk 0:00:35]}  Ne4+ {[%clk 0:00:19]} 26. Kd3 {[%clk 0:00:35]}  c5 {[%clk 0:00:12]} 27. Nxd5 {[%clk 0:00:33]}  c4+ {[%clk 0:00:07]} 28. Kxc4 {[%clk 0:00:32]}  Nd2+ {[%clk 0:00:08]} 29. Kxb4 {[%clk 0:00:32]}  Nxf3 {[%clk 0:00:09]} 30. Bxf3 {[%clk 0:00:32]}  Rab8+ {[%clk 0:00:08]} 31. Ka3 {[%clk 0:00:29]}  Re1 {[%clk 0:00:07]} 32. Ka2 {[%clk 0:00:20]}  Rc1 {[%clk 0:00:05]} 33. Bg4 {[%clk 0:00:18]}  Rd8 {[%clk 0:00:02]} 34. Ne7+ {[%clk 0:00:15]}  Kf8 {[%clk 0:00:02]} 35. Nc6 {[%clk 0:00:16]}  Rd6 {[%clk 0:00:02]} 36. d5 {[%clk 0:00:12]} 1-0


[Site "https://www.chess.com"]

[Event "Titled Tuesday Blitz August 23 Late 2022"]
[White "Bluebaum, Matthias"]
[Black "Senthil Maran K"]
[WhiteFideId "24651516"]
[BlackFideId "25035681"]
[WhiteElo "2603"]
[BlackElo "2124"]
[Result "1-0"]
[Round "02"]
[TimeControl "180+1"]
[Date "2022.08.23"]
[WhiteClock "0:01:34"]
[BlackClock "0:00:01"]

1. d4 {[%clk 0:03:00]}  Nf6 {[%clk 0:02:51]} 2. c4 {[%clk 0:03:01]}  e6 {[%clk 0:02:52]} 3. Nc3 {[%clk 0:03:01]}  d5 {[%clk 0:02:52]} 4. cxd5 {[%clk 0:03:02]}  exd5 {[%clk 0:02:53]} 5. Bg5 {[%clk 0:03:02]}  c6 {[%clk 0:02:51]} 6. e3 {[%clk 0:03:03]}  Bd6 {[%clk 0:02:51]} 7. Bd3 {[%clk 0:03:03]}  Nbd7 {[%clk 0:02:51]} 8. Nf3 {[%clk 0:03:03]}  Nf8 {[%clk 0:02:50]} 9. Qc2 {[%clk 0:02:56]}  Ng6 {[%clk 0:02:50]} 10. h4 {[%clk 0:02:51]}  Bg4 {[%clk 0:02:43]} 11. h5 {[%clk 0:02:50]}  Nf8 {[%clk 0:02:32]} 12. h6 {[%clk 0:02:51]}  g6 {[%clk 0:02:23]} 13. Ne5 {[%clk 0:02:51]}  Be6 {[%clk 0:02:17]} 14. e4 {[%clk 0:02:36]}  dxe4 {[%clk 0:02:07]} 15. Nxe4 {[%clk 0:02:37]}  Be7 {[%clk 0:02:06]} 16. Nxc6 {[%clk 0:02:20]}  bxc6 {[%clk 0:01:57]} 17. Qxc6+ {[%clk 0:02:21]}  N8d7 {[%clk 0:01:49]} 18. Nxf6+ {[%clk 0:02:20]}  Bxf6 {[%clk 0:00:41]} 19. Bxf6 {[%clk 0:02:21]}  Qa5+ {[%clk 0:00:30]} 20. Kf1 {[%clk 0:02:04]}  O-O {[%clk 0:00:29]} 21. Bg7 {[%clk 0:01:49]}  Rfe8 {[%clk 0:00:17]} 22. Qc3 {[%clk 0:01:48]}  Qg5 {[%clk 0:00:15]} 23. Qc1 {[%clk 0:01:42]}  Qg4 {[%clk 0:00:13]} 24. f3 {[%clk 0:01:42]}  Qg3 {[%clk 0:00:12]} 25. Qe1 {[%clk 0:01:42]}  Qd6 {[%clk 0:00:11]} 26. Qf2 {[%clk 0:01:38]}  Rab8 {[%clk 0:00:07]} 27. Rh4 {[%clk 0:01:35]}  Qb4 {[%clk 0:00:06]} 28. d5 {[%clk 0:01:34]}  Qxb2 {[%clk 0:00:01]} 29. Bxb2 {[%clk 0:01:34]} 1-0


[Site "https://www.chess.com"]

[Event "Titled Tuesday Blitz August 23 Late 2022"]
[White "Bortnyk, Olexandr"]
[Black "Blanco Ronquillo, Humberto L."]
[WhiteFideId "14120828"]
[BlackFideId "3504239"]
[WhiteElo "2723"]
[BlackElo "2425"]
[Result "1-0"]
[Round "02"]
[TimeControl "180+1"]
[Date "2022.08.23"]
[WhiteClock "0:01:05"]
[BlackClock "0:00:47"]

1. d4 {[%clk 0:03:00]}  d5 {[%clk 0:02:57]} 2. Nc3 {[%clk 0:03:00]}  Nf6 {[%clk 0:02:55]} 3. Bf4 {[%clk 0:03:00]}  a6 {[%clk 0:02:56]} 4. e3 {[%clk 0:03:00]}  e6 {[%clk 0:02:56]} 5. Nf3 {[%clk 0:02:57]}  c5 {[%clk 0:02:56]} 6. a3 {[%clk 0:02:54]}  Be7 {[%clk 0:02:54]} 7. dxc5 {[%clk 0:02:54]}  Bxc5 {[%clk 0:02:53]} 8. Bd3 {[%clk 0:02:53]}  O-O {[%clk 0:02:49]} 9. O-O {[%clk 0:02:53]}  b5 {[%clk 0:02:43]} 10. e4 {[%clk 0:02:52]}  Bb7 {[%clk 0:01:33]} 11. e5 {[%clk 0:02:51]}  Ne4 {[%clk 0:01:31]} 12. Bxe4 {[%clk 0:02:49]}  dxe4 {[%clk 0:01:32]} 13. Ng5 {[%clk 0:02:50]}  Bd4 {[%clk 0:01:28]} 14. Ncxe4 {[%clk 0:02:27]}  Bxe4 {[%clk 0:01:19]} 15. Nxe4 {[%clk 0:02:23]}  Bxb2 {[%clk 0:01:20]} 16. Qg4 {[%clk 0:01:16]}  f5 {[%clk 0:00:58]} 17. exf6 {[%clk 0:01:13]}  Bxf6 {[%clk 0:00:56]} 18. Qxe6+ {[%clk 0:01:11]}  Kh8 {[%clk 0:00:56]} 19. Rad1 {[%clk 0:01:06]}  Qe7 {[%clk 0:00:51]} 20. Qd5 {[%clk 0:01:06]}  Ra7 {[%clk 0:00:47]} 21. Bd6 {[%clk 0:01:05]} 1-0


[Site "https://www.chess.com"]

[Event "Titled Tuesday Blitz August 23 Late 2022"]
[White "Cruz, Cristhian"]
[Black "Sarana, Alexey"]
[WhiteFideId "3801969"]
[BlackFideId "24133795"]
[WhiteElo "2497"]
[BlackElo "2666"]
[Result "0-1"]
[Round "02"]
[TimeControl "180+1"]
[Date "2022.08.23"]
[WhiteClock "0:00:01"]
[BlackClock "0:00:31"]

1. d4 {[%clk 0:03:00]}  Nf6 {[%clk 0:02:59]} 2. c4 {[%clk 0:02:53]}  e6 {[%clk 0:03:00]} 3. Nc3 {[%clk 0:02:53]}  d5 {[%clk 0:03:00]} 4. cxd5 {[%clk 0:02:52]}  exd5 {[%clk 0:03:00]} 5. Bg5 {[%clk 0:02:51]}  Be6 {[%clk 0:02:59]} 6. e3 {[%clk 0:02:47]}  Nbd7 {[%clk 0:02:58]} 7. Bd3 {[%clk 0:02:45]}  c6 {[%clk 0:02:58]} 8. f4 {[%clk 0:02:40]}  h6 {[%clk 0:02:51]} 9. Bh4 {[%clk 0:02:39]}  g5 {[%clk 0:02:52]} 10. fxg5 {[%clk 0:02:38]}  Ng4 {[%clk 0:02:50]} 11. Qe2 {[%clk 0:02:27]}  hxg5 {[%clk 0:02:43]} 12. Bg3 {[%clk 0:02:27]}  Ndf6 {[%clk 0:02:36]} 13. Nf3 {[%clk 0:02:20]}  Nh5 {[%clk 0:02:35]} 14. O-O-O {[%clk 0:02:12]}  Nxg3 {[%clk 0:02:30]} 15. hxg3 {[%clk 0:02:12]}  Rxh1 {[%clk 0:02:30]} 16. Rxh1 {[%clk 0:02:10]}  Qf6 {[%clk 0:02:22]} 17. e4 {[%clk 0:01:58]}  O-O-O {[%clk 0:02:22]} 18. e5 {[%clk 0:01:58]}  Qe7 {[%clk 0:02:21]} 19. Rh7 {[%clk 0:01:51]}  Kb8 {[%clk 0:02:14]} 20. Kb1 {[%clk 0:01:49]}  Rc8 {[%clk 0:01:55]} 21. Qd2 {[%clk 0:01:34]}  c5 {[%clk 0:01:54]} 22. Ne2 {[%clk 0:01:26]}  Nf2 {[%clk 0:01:48]} 23. Bc2 {[%clk 0:01:20]}  Ne4 {[%clk 0:01:32]} 24. Qe3 {[%clk 0:01:02]}  Bf5 {[%clk 0:01:14]} 25. Rh8 {[%clk 0:01:01]}  Bg6 {[%clk 0:01:02]} 26. dxc5 {[%clk 0:00:52]}  Rxc5 {[%clk 0:00:51]} 27. Ned4 {[%clk 0:00:45]}  Rc8 {[%clk 0:00:51]} 28. a3 {[%clk 0:00:36]}  g4 {[%clk 0:00:49]} 29. Nh4 {[%clk 0:00:33]}  Qxe5 {[%clk 0:00:49]} 30. Nxg6 {[%clk 0:00:32]}  fxg6 {[%clk 0:00:50]} 31. Qf4 {[%clk 0:00:11]}  Bd6 {[%clk 0:00:44]} 32. Rxc8+ {[%clk 0:00:10]}  Kxc8 {[%clk 0:00:44]} 33. Qxg4+ {[%clk 0:00:10]}  Kb8 {[%clk 0:00:41]} 34. Nb5 {[%clk 0:00:08]}  Nd2+ {[%clk 0:00:41]} 35. Ka2 {[%clk 0:00:07]}  Nc4 {[%clk 0:00:37]} 36. Qd4 {[%clk 0:00:04]}  a6 {[%clk 0:00:36]} 37. Qxe5 {[%clk 0:00:04]}  Bxe5 {[%clk 0:00:37]} 38. Nc3 {[%clk 0:00:04]}  Bxc3 {[%clk 0:00:34]} 39. bxc3 {[%clk 0:00:04]}  g5 {[%clk 0:00:34]} 40. Kb3 {[%clk 0:00:02]}  Kc7 {[%clk 0:00:35]} 41. Kb4 {[%clk 0:00:02]}  Kc6 {[%clk 0:00:31]} 42. Bg6 {[%clk 0:00:01]}  a5+ {[%clk 0:00:31]} 43. Kb3 {[%clk 0:00:01]}  Kc5 {[%clk 0:00:31]} 0-1


[Site "https://www.chess.com"]